fUST/lending_fUST_20251117
["ID","MTS","AMOUNT","RATE_DAILY","PERIOD"]
[394177970,1763355048436,-252.557625,0.00038465,120]
[394177971,1763355048447,-300.136239,0.00038465,120]
[394177972,1763355048458,-252.557625,0.00038465,120]
[394177973,1763355048467,-252.557625,0.00038465,120]
[394177974,1763355048476,-252.557625,0.00038465,120]
[394177975,1763355048485,-252.557625,0.00038465,120]
[394177976,1763355048494,-252.557625,0.00038465,120]
[394177977,1763355048503,-151.0,0.00038465,120]
[394177978,1763355048513,-151.0,0.00038465,120]
[394177979,1763355048522,-151.0,0.00038465,120]
[394177980,1763355048532,-153.691442,0.00038465,120]
[394177981,1763355048541,-151.0,0.00038465,14]
[394177982,1763355048550,-150.0,0.00038466,2]
[394177983,1763355048559,-150.0,0.00038466,7]
[394177984,1763355048569,-150.0,0.00038466,120]
[394177985,1763355048578,-1009.30359198,0.00038467,14]
[394177986,1763355048587,-150.0,0.00038473,5]
[394177987,1763355048596,-624.42180306,0.00038473,4]
[394177988,1763355048605,-9712.3984897,0.00038673,2]
[394177989,1763355048614,-6223.91,0.000387,14]
[394177990,1763355048624,-157.98,0.000387,21]
[394177991,1763355048633,-152.144456,0.00038875,2]
[394177992,1763355048642,-150.25529448,0.00038904,5]
[394177993,1763355048652,-393.0,0.0003896,120]
[394177994,1763355048661,-1045.4273287,0.00039,10]
[394177995,1763355048670,-300.0,0.00039021,5]
[394177996,1763355048680,-152.144456,0.00039062,2]
[394177997,1763355048689,-219.848837,0.0003925,2]
[394177998,1763355048698,-152.144456,0.0003925,2]
[394177999,1763355048709,-450.0,0.00039568,5]
[394178000,1763355048718,-349.943194,0.00039654,2]
[394178001,1763355048728,-1000.0,0.0003973,90]
[394178002,1763355048737,-791.0,0.0003973,90]
[394178003,1763355048746,-357.71,0.00039838,2]
[394178004,1763355048756,-187.95553136,0.000399,120]
[394178005,1763355048765,-402.51167418,0.0004,2]
[394178006,1763355048774,-850.99713349,0.0004,120]
[394178007,1763355048783,-373.87417488,0.0004,120]
[394178008,1763355048792,-5137.22518541,0.0004,90]
[394178009,1763355048801,-20502.34814842,0.0004,2]
[394178010,1763355048810,-151.0,0.0004,30]
[394178011,1763355048819,-151.0,0.0004,120]
[394178012,1763355048828,-151.0,0.0004,120]
[394178013,1763355048838,-151.0,0.0004,120]
[394178014,1763355048847,-151.0,0.0004,120]
[394178015,1763355048856,-298.091965,0.0004,120]
[394178016,1763355048866,-151.0,0.0004,120]
[394178017,1763355048876,-151.0,0.0004,120]
[394178018,1763355048885,-600.0,0.00040116,5]
[394178019,1763355048895,-278.59234853,0.00040158,2]
[394178020,1763355048905,-450.63260107,0.00040664,5]
[394178021,1763355048914,-420.0,0.0004096,120]
[394178022,1763355048923,-718.57385352,0.00040974,5]
[394178023,1763355048932,-1035.9278208,0.00040975,5]
[394178024,1763355048941,-209.98713641,0.00041,120]
[394178025,1763355048951,-196.74555084,0.00041004,2]
[394178026,1763355048960,-786.98220335,0.00041004,2]
[394178027,1763355048969,-1770.70995754,0.00041004,2]
[394178028,1763355048978,-169.04,0.00041096,120]
[394178029,1763355048987,-154.97,0.00041096,120]
[394178030,1763355048995,-500.0,0.00041096,31]
[394178031,1763355049005,-500.0,0.00041096,31]
[394178032,1763355049014,-500.0,0.00041096,31]
[394178033,1763355049024,-500.0,0.00041096,31]
[394178034,1763355049032,-500.0,0.00041096,31]
[394178035,1763355049041,-500.0,0.00041096,31]
[394178036,1763355049050,-500.0,0.00041096,31]
[394178037,1763355049059,-500.0,0.00041096,31]
[394178038,1763355049068,-500.0,0.00041096,31]
[394178039,1763355049077,-500.0,0.00041096,31]
[394178040,1763355049087,-500.0,0.00041096,31]
[394178041,1763355049095,-500.0,0.00041096,31]
[394178042,1763355049104,-500.0,0.00041096,31]
[394178043,1763355049113,-500.0,0.00041096,31]
[394178044,1763355049123,-500.0,0.00041096,31]
[394178045,1763355049135,-500.0,0.00041096,31]
[394178046,1763355049144,-458.46326806,0.00041096,31]
[394178047,1763355049153,-500.0,0.00041096,31]
[394178048,1763355049163,-500.0,0.00041096,31]
[394178049,1763355049173,-500.0,0.00041096,31]
[394178050,1763355049182,-500.0,0.00041096,31]
[394178051,1763355049192,-500.0,0.00041096,31]
[394178052,1763355049203,-500.0,0.00041096,31]
[394178053,1763355049212,-500.0,0.00041096,31]
[394178054,1763355049221,-1591.85,0.000411,14]
[394178055,1763355049231,-209.43,0.000411,14]
[394178056,1763355049240,-152.144456,0.00041255,31]
[394178057,1763355049250,-408.82,0.00041313,2]
[394178058,1763355049259,-152.144456,0.00041332,31]
[394178059,1763355049269,-152.144456,0.0004141,31]
[394178060,1763355049279,-422.34,0.000418,30]
[394178061,1763355049288,-152.553203,0.000419,120]
[394178062,1763355049298,-239.49341552,0.00042,120]
[394178063,1763355049307,-682.36515029,0.00042272,2]
[394178064,1763355049316,-1228.25727053,0.00042272,2]
[394178065,1763355049325,-459.92,0.00042789,2]
[394178066,1763355049388,-13780.63,0.00042832,13]
[394178067,1763355049398,-447.0,0.0004296,120]
[394178068,1763355049408,-287.12005232,0.00043,120]
[394178069,1763355049417,-6223.91,0.00043,14]
[394178070,1763355049427,-159.241872,0.00043,120]
[394178071,1763355049437,-498.608934,0.00043,120]
[394178072,1763355049447,-234.85844226,0.00043,120]
[394178073,1763355049456,-498.608934,0.00043,120]
[394178074,1763355049466,-498.608934,0.00043,120]
[394178075,1763355049477,-151.0,0.00043,120]
[394178076,1763355049487,-498.608942,0.00043,120]
[394178077,1763355049496,-151.0,0.00043,120]
[394178078,1763355049506,-151.0,0.00043,120]
[394178079,1763355049517,-151.0,0.00043,120]
[394178080,1763355049528,-151.0,0.00043,120]
[394178081,1763355049538,-151.0,0.00043,120]
[394178082,1763355049547,-151.0,0.00043,120]
[394178083,1763355049556,-151.0,0.00043,120]
[394178084,1763355049566,-299.542451,0.00043,120]
[394178085,1763355049575,-202.398932,0.00043,120]
[394178086,1763355049585,-202.398932,0.00043,120]
[394178087,1763355049594,-202.398932,0.00043,120]
[394178088,1763355049604,-202.398929,0.00043,120]
[394178089,1763355049613,-206.29003333,0.00043162,2]
[394178090,1763355049625,-825.16013331,0.00043162,2]
[394178091,1763355049642,-1856.61029994,0.00043162,2]
[394178092,1763355049653,-3300.64053323,0.00043162,2]
[394178093,1763355049662,-2327.53404191,0.00043165,5]
[394178094,1763355049673,-7400.1299953,0.00043395,2]
[394178095,1763355049682,-16663.65028291,0.000435,120]
[394178096,1763355049692,-151.0,0.000435,120]
[394178097,1763355049702,-151.0,0.000435,120]
[394178098,1763355049712,-151.0,0.000435,120]
[394178099,1763355049723,-151.0,0.000435,120]
[394178100,1763355049734,-151.0,0.000435,120]
[394178101,1763355049743,-252.557625,0.000435,120]
[394178102,1763355049753,-151.0,0.000435,120]
[394178103,1763355049762,-252.557625,0.000435,120]
[394178104,1763355049773,-252.557625,0.000435,120]
[394178105,1763355049782,-252.557629,0.000435,120]
[394178106,1763355049792,-151.0,0.000435,120]
[394178107,1763355049803,-842.23,0.000435,13]
[394178108,1763355049812,-151.0,0.000435,120]
[394178109,1763355049824,-154.623809,0.000435,120]
[394178110,1763355049835,-1000.0,0.00043703,90]
[394178111,1763355049845,-1000.0,0.00043703,90]
[394178112,1763355049857,-1730.5237302,0.00043704,2]
[394178113,1763355049868,-1000.0,0.000438,90]
[394178114,1763355049879,-199.0,0.00044109,30]
[394178115,1763355049890,-395.5698071,0.00044203,30]
[394178116,1763355049900,-395.5698071,0.00044203,30]
[394178117,1763355049911,-395.5698071,0.00044203,30]
[394178118,1763355049920,-254.023948,0.00044203,30]
[394178119,1763355049929,-511.02,0.00044264,2]
[394178120,1763355049938,-1000.0,0.00044416,2]
[394178121,1763355049948,-1000.0,0.00044416,2]
[394178122,1763355049958,-1000.0,0.00044416,2]
[394178123,1763355049967,-1000.0,0.00044416,2]
[394178124,1763355049976,-1000.0,0.00044416,2]
[394178125,1763355049985,-1000.0,0.00044416,2]
[394178126,1763355049995,-1000.0,0.00044416,2]
[394178127,1763355050004,-1000.0,0.00044416,2]
[394178128,1763355050014,-1000.0,0.00044416,2]
[394178129,1763355050023,-1000.0,0.00044416,2]
[394178130,1763355050032,-1000.0,0.00044416,2]
[394178131,1763355050041,-1000.0,0.00044416,2]
[394178132,1763355050052,-1000.0,0.00044416,2]
[394178133,1763355050061,-509.92686509,0.00044416,2]
[394178134,1763355050072,-960.72301703,0.00044416,2]
[394178135,1763355050140,-39.27698297,0.00044416,2]
[394178136,1763355050149,-1000.0,0.00044416,2]
[394178137,1763355050158,-30.1135786,0.00044416,2]
[394178138,1763355050375,-3e-08,0.00024102,2]
[394178139,1763355050438,-284.12480985,0.00024102,2]
[394178140,1763355050448,-4481.25984796,0.000248,2]
[394178141,1763355050457,-535.60681067,0.00044416,2]
[394178142,1763355051017,-185.05293601,0.00026713,2]
[394178143,1763355051034,-99.07187387,0.00026713,2]
[394178144,1763355051044,-153.060795,0.00027397,7]
[394178145,1763355051054,-151.0,0.00027397,7]
[394178146,1763355051065,-284.40893469,0.00029325,2]
[394178147,1763355051075,-335.27,0.00038454,10]
[394178148,1763355051085,-151.0,0.00038464,120]
[394178149,1763355051095,-151.0,0.00038464,120]
[394178150,1763355051105,-151.0,0.00038464,120]
[394178151,1763355051115,-434.27961073,0.00044416,2]
[394178152,1763355051127,-1000.0,0.00044416,2]
[394178153,1763355051137,-1000.0,0.00044416,2]
[394178154,1763355051147,-1000.0,0.00044416,2]
[394178155,1763355051156,-1000.0,0.00044416,2]
[394178156,1763355051166,-1000.0,0.00044416,2]
[394178157,1763355051176,-1000.0,0.00044416,2]
[394178158,1763355051186,-1000.0,0.00044416,2]
[394178159,1763355051195,-1000.0,0.00044416,2]
[394178160,1763355051206,-1000.0,0.00044416,2]
[394178161,1763355051216,-1000.0,0.00044416,2]
[394178162,1763355051226,-1000.0,0.00044416,2]
[394178163,1763355051236,-1000.0,0.00044416,2]
[394178164,1763355051246,-554.86188329,0.00044416,2]
[394178165,1763355051255,-318.19129761,0.00044416,2]
[394178166,1763355051265,-151.0,0.00044416,2]
[394178167,1763355051275,-151.0,0.00044416,2]
[394178168,1763355051286,-151.0,0.00044416,2]
[394178169,1763355051295,-151.0,0.00044416,120]
[394178170,1763355051305,-151.0,0.00044416,120]
[394178171,1763355051315,-151.0,0.00044416,15]
[394178172,1763355051325,-151.0,0.00044416,15]
[394178173,1763355051334,-397.0095852,0.00044477,30]
[394178174,1763355051344,-627.2207473,0.00044477,30]
[394178175,1763355051354,-1591.85,0.000445,14]
[394178176,1763355051364,-209.43,0.000448,14]
[394178177,1763355051374,-1651.1921909,0.00044883,2]
[394178178,1763355051384,-474.0,0.0004496,120]
[394178179,1763355051394,-2181.48715976,0.00045,2]
[394178180,1763355051403,-187.48277592,0.00045,120]
[394178181,1763355051414,-2000.0,0.00045,21]
[394178182,1763355051424,-422.34,0.000452,30]
[394178183,1763355051433,-151.0,0.00045299,120]
[394178184,1763355051489,-205.479447,0.00045299,120]
[394178185,1763355051503,-205.479447,0.00045299,120]
[394178186,1763355051513,-205.479447,0.00045299,120]
[394178187,1763355051523,-205.479443,0.00045299,120]
[394178188,1763355051533,-227.325694,0.00045299,120]
[394178189,1763355051543,-422.34,0.000453,30]
[394178190,1763355051552,-151.0,0.00045433,120]
[394178191,1763355051561,-199.0,0.00045479,30]
[394178192,1763355051571,-168.0,0.0004571,2]
[394178193,1763355051580,-349.943194,0.00046143,2]
[394178194,1763355051589,-151.0,0.00046143,120]
[394178195,1763355051599,-151.0,0.00046143,120]
[394178196,1763355051608,-151.0,0.00046143,90]
[394178197,1763355051617,-151.0,0.00046143,120]
[394178198,1763355051627,-186.367292,0.00046298,120]
[394178199,1763355051636,-186.367292,0.00046298,120]
[394178200,1763355051646,-178.55262726,0.00046298,120]
[394178201,1763355051658,-7.81466474,0.00046298,120]
[394178202,1763355051667,-186.367289,0.00046298,120]
[394178203,1763355051677,-500.0,0.00046466,90]
[394178204,1763355051686,-160.25740065,0.00046689,60]
[394178205,1763355065803,1500747.9995,0.00038464,20]
[394178206,1763355077525,596.054006,0.00038464,120]
[394178207,1763355347828,106669.80770353,0.00038425,20]
[394178208,1763355349857,150.0,0.0002,2]
[394178209,1763355622871,3546.89811104,0.00019855,2]
[394178210,1763356033125,-311.38539365,0.00019071,2]
[394178211,1763356036288,-4688.61460635,0.00019071,2]
[394178212,1763356036309,-1200.0,0.00019263,2]
[394178213,1763356036330,-300.0,0.00019263,2]
[394178214,1763356036351,-5000.0,0.00019264,2]
[394178215,1763356036373,-300.0,0.00019556,2]
[394178216,1763356036393,-150.0,0.00019557,2]
[394178217,1763356036413,-250.0,0.00019635,10]
[394178218,1763356036437,-302.51602579,0.00019756,2]
[394178219,1763356036456,-6165.50037866,0.00019855,2]
[394178220,1763356036476,-453.77403868,0.00019953,4]
[394178221,1763356036495,-302.51602578,0.00020151,4]
[394178222,1763356036514,-893.40170925,0.00020266,2]
[394178223,1763356036534,-2688.7559088,0.00020744,2]
[394178224,1763356036558,-941.84685595,0.00020834,10]
[394178225,1763356041079,-2444.33314405,0.00020834,10]
[394178226,1763356041099,-44258.1035645,0.00020837,2]
[394178227,1763356051082,-1568.12164084,0.00020629,2]
[394178229,1763356152097,-5000.0,0.00020423,2]
[394178230,1763356152117,-150.0,0.00020526,2]
[394178231,1763356152138,-3431.87835916,0.00020629,2]
[394178232,1763356152258,-300.0,0.00020824,2]
[394178233,1763356152280,-2351.51,0.00020825,10]
[394178234,1763356152301,-1959.59,0.00020825,10]
[394178235,1763356152320,-922.0,0.00020833,2]
[394178236,1763356152340,-2821.81,0.00020834,10]
[394178237,1763356152360,-564.12863042,0.00020835,2]
[394178238,1763356152379,-500.0,0.00020835,2]
[394178239,1763356152400,-564.12863042,0.00020835,2]
[394178240,1763356152419,-251.45361596,0.00020835,2]
[394178241,1763356152438,-507.0137114,0.00020835,2]
[394178242,1763356152459,-564.12863042,0.00020835,2]
[394178243,1763356152479,-564.12863042,0.00020835,2]
[394178244,1763356152500,-564.12863042,0.00020835,2]
[394178245,1763356152520,-500.0,0.00020835,2]
[394178246,1763356152540,-564.12863042,0.00020835,2]
[394178247,1763356152560,-564.12863042,0.00020835,2]
[394178248,1763356152580,-564.12863042,0.00020835,2]
[394178249,1763356152603,-564.12863042,0.00020835,2]
[394178250,1763356152622,-564.12863042,0.00020835,2]
[394178251,1763356152643,-564.12863042,0.00020835,2]
[394178252,1763356152666,-564.12863042,0.00020835,2]
[394178253,1763356152689,-564.12863042,0.00020835,2]
[394178254,1763356152711,-564.12863042,0.00020835,2]
[394178255,1763356152732,-564.12863042,0.00020835,2]
[394178256,1763356152753,-500.0,0.00020835,2]
[394178257,1763356152772,-500.0,0.00020835,2]
[394178258,1763356152793,-500.0,0.00020835,2]
[394178259,1763356152813,-500.0,0.00020835,2]
[394178260,1763356152837,-500.0,0.00020835,2]
[394178261,1763356152857,-500.0,0.00020835,2]
[394178262,1763356152879,-500.0,0.00020835,2]
[394178263,1763356152900,-500.0,0.00020835,2]
[394178264,1763356152923,-500.0,0.00020835,2]
[394178265,1763356152946,-500.0,0.00020835,2]
[394178266,1763356152966,-184.85494379,0.00020835,2]
[394178267,1763356152989,-500.0,0.00020835,2]
[394178268,1763356153009,-500.0,0.00020835,2]
[394178269,1763356153030,-500.0,0.00020835,2]
[394178270,1763356153049,-564.12863042,0.00020835,2]
[394178271,1763356153069,-500.0,0.00020835,2]
[394178272,1763356153089,-500.0,0.00020835,2]
[394178273,1763356153111,-500.0,0.00020835,2]
[394178274,1763356153133,-500.0,0.00020835,2]
[394178275,1763356153152,-500.0,0.00020835,2]
[394178276,1763356153175,-500.0,0.00020835,2]
[394178277,1763356153196,-564.12863042,0.00020835,2]
[394178278,1763356153216,-500.0,0.00020835,2]
[394178279,1763356153236,-500.0,0.00020835,2]
[394178280,1763356153256,-500.0,0.00020835,2]
[394178281,1763356153276,-500.0,0.00020835,2]
[394178282,1763356153296,-500.0,0.00020835,2]
[394178283,1763356153316,-500.0,0.00020835,2]
[394178284,1763356153337,-500.0,0.00020835,2]
[394178285,1763356153358,-500.0,0.00020835,2]
[394178286,1763356153379,-500.0,0.00020835,2]
[394178287,1763356153403,-500.0,0.00020835,2]
[394178288,1763356153426,-500.0,0.00020835,2]
[394178289,1763356153450,-500.0,0.00020835,2]
[394178290,1763356153472,-500.0,0.00020835,2]
[394178291,1763356153493,-500.0,0.00020835,2]
[394178292,1763356153516,-500.0,0.00020835,2]
[394178293,1763356153537,-621.69693557,0.00020835,2]
[394178294,1763356153562,-500.0,0.00020835,2]
[394178295,1763356153584,-500.0,0.00020835,2]
[394178296,1763356153610,-500.0,0.00020835,2]
[394178297,1763356153631,-500.0,0.00020835,2]
[394178298,1763356153654,-500.0,0.00020835,2]
[394178299,1763356153675,-500.0,0.00020835,2]
[394178300,1763356153699,-446.17870766,0.00020835,2]
[394178301,1763356153721,-500.0,0.00020835,2]
[394178302,1763356153744,-500.0,0.00020835,2]
[394178303,1763356153767,-500.0,0.00020835,2]
[394178304,1763356153789,-500.0,0.00020835,2]
[394178305,1763356153809,-500.0,0.00020835,2]
[394178306,1763356153830,-500.0,0.00020835,2]
[394178307,1763356153852,-500.0,0.00020835,2]
[394178308,1763356153876,-500.0,0.00020835,2]
[394178309,1763356153898,-500.0,0.00020835,2]
[394178310,1763356153921,-500.0,0.00020835,2]
[394178311,1763356153943,-500.0,0.00020835,2]
[394178312,1763356153964,-500.0,0.00020835,2]
[394178313,1763356153987,-500.0,0.00020835,2]
[394178314,1763356154008,-500.0,0.00020835,2]
[394178315,1763356154032,-265.54032639,0.00020835,2]
[394178316,1763356154052,-500.0,0.00020835,2]
[394178317,1763356154074,-200.0,0.00020835,2]
[394178318,1763356154095,-500.0,0.00020835,2]
[394178319,1763356154117,-500.0,0.00020835,2]
[394178320,1763356154139,-500.0,0.00020835,2]
[394178321,1763356154161,-500.0,0.00020835,2]
[394178322,1763356154182,-500.0,0.00020835,2]
[394178323,1763356154204,-500.0,0.00020835,2]
[394178324,1763356154304,-500.0,0.00020835,2]
[394178325,1763356154327,-500.0,0.00020835,2]
[394178326,1763356154350,-500.0,0.00020835,2]
[394178327,1763356154371,-500.0,0.00020835,2]
[394178328,1763356154397,-500.0,0.00020835,2]
[394178329,1763356154420,-500.0,0.00020835,2]
[394178330,1763356154443,-500.0,0.00020835,2]
[394178331,1763356154465,-500.0,0.00020835,2]
[394178332,1763356154486,-500.0,0.00020835,2]
[394178333,1763356154507,-500.0,0.00020835,2]
[394178334,1763356154529,-500.0,0.00020835,2]
[394178335,1763356154556,-500.0,0.00020835,2]
[394178336,1763356154577,-500.0,0.00020835,2]
[394178337,1763356154602,-500.0,0.00020835,2]
[394178338,1763356154623,-500.0,0.00020835,2]
[394178339,1763356154645,-500.0,0.00020835,2]
[394178340,1763356154667,-500.0,0.00020835,2]
[394178341,1763356154692,-500.0,0.00020835,2]
[394178342,1763356154715,-500.0,0.00020835,2]
[394178343,1763356154737,-500.0,0.00020835,2]
[394178344,1763356154760,-500.0,0.00020835,2]
[394178345,1763356154780,-500.0,0.00020835,2]
[394178346,1763356154803,-500.0,0.00020835,2]
[394178347,1763356154826,-500.0,0.00020835,2]
[394178348,1763356154847,-500.0,0.00020835,2]
[394178349,1763356154869,-500.0,0.00020835,2]
[394178350,1763356154890,-500.0,0.00020835,2]
[394178351,1763356154914,-500.0,0.00020835,2]
[394178352,1763356154937,-500.0,0.00020835,2]
[394178353,1763356154959,-500.0,0.00020835,2]
[394178354,1763356154980,-500.0,0.00020835,2]
[394178355,1763356155003,-500.0,0.00020835,2]
[394178356,1763356155026,-166.6459079,0.00020835,2]
[394178357,1763356155047,-500.0,0.00020835,2]
[394178358,1763356155069,-500.0,0.00020835,2]
[394178359,1763356155093,-500.0,0.00020835,2]
[394178360,1763356155114,-500.0,0.00020835,2]
[394178361,1763356155142,-500.0,0.00020835,2]
[394178362,1763356155163,-500.0,0.00020835,2]
[394178363,1763356155183,-500.0,0.00020835,2]
[394178364,1763356155204,-592.33506194,0.00020835,2]
[394178365,1763356155225,-592.33506194,0.00020835,2]
[394178366,1763356155246,-592.33506194,0.00020835,2]
[394178367,1763356155275,-2316.31534524,0.00020835,2]
[394178368,1763356155304,-2316.31534524,0.00020835,2]
[394178369,1763356155330,-2316.31534524,0.00020835,2]
[394178370,1763356155355,-2316.31534524,0.00020835,2]
[394178371,1763356155380,-299.11186993,0.00020835,2]
[394178385,1763356231788,-219.40292443,0.00019742,2]
[394178386,1763356231798,-282.39054547,0.00019842,2]
[394178430,1763356232193,-512.19150083,0.00019842,2]
[394178432,1763356232203,-4676.96813345,0.00020421,2]
[394179019,1763356238630,-323.03186655,0.00020421,2]
[394179021,1763356238640,-1200.0,0.00020626,2]
[394179023,1763356238649,-300.0,0.00020626,2]
[394179025,1763356238659,-803.29319448,0.00020627,2]
[394179027,1763356238672,-4196.70680552,0.00020627,2]
[394179029,1763356238681,-1633.0,0.00020825,10]
[394179031,1763356238690,-1360.83,0.00020825,10]
[394179033,1763356238700,-1134.02,0.00020825,10]
[394179035,1763356238710,-151.0,0.00020831,2]
[394179037,1763356238718,-151.0,0.00020831,2]
[394179038,1763356238728,-151.0,0.00020831,2]
[394179040,1763356238737,-151.0,0.00020831,2]
[394179042,1763356238748,-151.0,0.00020831,2]
[394179044,1763356238757,-151.0,0.00020831,2]
[394179046,1763356238766,-151.0,0.00020831,2]
[394179048,1763356238776,-151.0,0.00020831,2]
[394179050,1763356238785,-151.0,0.00020831,2]
[394179052,1763356238794,-270.73879904,0.00020831,2]
[394179054,1763356238804,-176.01753117,0.00020834,2]
[394179056,1763356238814,-500.0,0.00020834,2]
[394179058,1763356238823,-500.0,0.00020834,2]
[394179060,1763356238832,-500.0,0.00020834,2]
[394179062,1763356238841,-500.0,0.00020834,2]
[394179064,1763356238851,-500.0,0.00020834,2]
[394179065,1763356238860,-500.0,0.00020834,2]
[394179067,1763356238869,-554.90959798,0.00020834,2]
[394179069,1763356238878,-500.0,0.00020834,2]
[394179071,1763356238888,-500.0,0.00020834,2]
[394179073,1763356238897,-500.0,0.00020834,2]
[394179075,1763356238906,-500.0,0.00020834,2]
[394179077,1763356238917,-500.0,0.00020834,2]
[394179079,1763356238927,-500.0,0.00020834,2]
[394179081,1763356238936,-500.0,0.00020834,2]
[394179083,1763356238950,-500.0,0.00020834,2]
[394179085,1763356238960,-500.0,0.00020834,2]
[394179087,1763356238969,-500.0,0.00020834,2]
[394179089,1763356238978,-775.08,0.00020844,2]
[394179091,1763356238987,-50000.0,0.00020844,2]
[394179092,1763356238996,-500.0,0.00020847,2]
[394179094,1763356239005,-632.70921599,0.00020847,2]
[394179096,1763356239014,-775.08,0.00020847,2]
[394179098,1763356239023,-775.08,0.00020847,2]
[394179100,1763356239032,-518.08160207,0.00020873,2]
[394179102,1763356239041,-500.0,0.00020873,2]
[394179104,1763356239051,-501.81896579,0.00020873,2]
[394179106,1763356239060,-495.28841905,0.00020873,2]
[394179108,1763356239072,-501.47392707,0.00020873,2]
[394179110,1763356239082,-500.0,0.00020873,2]
[394179112,1763356239091,-593.21413216,0.00020873,2]
[394179114,1763356239101,-500.0,0.00020873,2]
[394179116,1763356239111,-500.0,0.00020873,2]
[394179118,1763356239120,-500.0,0.00020873,2]
[394179120,1763356239129,-503.94861877,0.00020873,2]
[394179122,1763356239138,-775.08,0.00020934,2]
[394179124,1763356239147,-3009.0,0.00020935,3]
[394179126,1763356239156,-1504.5,0.00020935,3]
[394179127,1763356239165,-752.25,0.00020935,3]
[394179129,1763356239175,-376.13,0.00020935,3]
[394179131,1763356239184,-188.06,0.00020935,3]
[394179133,1763356239193,-564.21,0.00020935,3]
[394179135,1763356239203,-775.08,0.00020944,2]
[394179137,1763356239212,-775.08,0.00020944,2]
[394179139,1763356239221,-775.08,0.00020944,2]
[394179141,1763356239230,-775.08,0.00020944,2]
[394179143,1763356239239,-775.08,0.00020944,2]
[394179145,1763356239249,-775.08,0.00020944,2]
[394179147,1763356239258,-775.08,0.00020944,2]
[394179149,1763356239267,-775.08,0.00020944,2]
[394179151,1763356239277,-775.08,0.00020944,2]
[394179153,1763356239287,-500.0,0.00020945,2]
[394179155,1763356239296,-333.64945345,0.00020945,2]
[394179157,1763356239305,-775.08,0.00020954,2]
[394179159,1763356239315,-500.0,0.00020955,2]
[394179161,1763356239325,-500.0,0.00020955,2]
[394179163,1763356239334,-1000.0,0.00020955,2]
[394179165,1763356239343,-1000.0,0.00020955,2]
[394179167,1763356239353,-1000.0,0.00020955,2]
[394179169,1763356239362,-1000.0,0.00020955,2]
[394179170,1763356239371,-1016.95258603,0.00020955,2]
[394179173,1763356239380,-775.08,0.00020955,2]
[394179176,1763356239388,-161.01806223,0.00020973,2]
[394179178,1763356239397,-575.56467831,0.00020973,2]
[394179180,1763356239406,-500.0,0.00020973,2]
[394179182,1763356239415,-500.0,0.00020973,2]
[394179184,1763356239425,-502.26261043,0.00020973,2]
[394179186,1763356239434,-502.92139257,0.00020973,2]
[394179188,1763356239445,-62187.48469096,0.0002099,2]
[394179190,1763356239455,-1152.0,0.00021,2]
[394179192,1763356239464,-500.0,0.00021121,2]
[394179194,1763356239473,-151.0,0.000213,3]
[394179196,1763356239482,-300.0,0.00021376,20]
[394179198,1763356239491,-300.0,0.00021376,20]
[394179199,1763356239500,-300.0,0.00021376,20]
[394179207,1763356239574,-300.0,0.00021376,20]
[394179209,1763356239585,-300.0,0.00021376,20]